[Event "Gibraltar Challengers B 2020"]
[Site "Caleta"]
[Date "2020.01.27"]
[Round "3.20"]
[White "Schouten, Freek"]
[Black "Maldonado Mena, German"]
[Result "1-0"]
[ECO "D30"]
[WhiteElo "2084"]
[BlackElo "1946"]
[Annotator "NA"]
[PlyCount "75"]
[EventDate "2020.01.20"]
[EventType "swiss"]
[EventCountry "GGB"]
[SourceTitle "playchess.com"]
[Source "ChessBase"]
[SourceQuality "1"]
[TimeControl "6600+10"]

{[%evp 11,74,27,16,2,32767,-12,76,32767,32767,32767,32767,32767,32767,32767,32767,32767,32767,32767,56,49,54,32767,107,149,32767,32767,-11,-29,32767,32767,412,422,32767,226,32767,32767,271,32767,447,555,563,627,622,719,32767,32767,310,311,272,32767,280,304,716,32767,32767,29980,29989,29990,29993,32767,29993,29994,643,29995,29996]} 1. d4 {[%emt 0:02:21]} d5 {[%emt 0:00:00]} 2. Nf3 {[%emt 0:00:09]} e6 {[%emt 0:00:00]} 3. c4 {[%emt 0:00:18]} a6 {[%emt 0:00:07]} 4. g3 {[%emt 0:02:49]} dxc4 {[%emt 0:01:05]} 5. Bg2 {[%emt 0:00:36]} b5 {[%emt 0:01:06]} 6. Ne5 {[%emt 0:03:20] D30: Queen's Gambit Declined: Systems without Nc3} c6 {[%emt 0:00:10]} 7. O-O {[%emt 0:00:34]} Bb7 {[%emt 0:00:47]} 8. a4 {[%emt 0:02:52]} Qc7 $146 {[%emt 0:02:08]} ({Predecessor:} 8... Nf6 $11 {remains equal.} 9. b3 cxb3 10. Nc3 b4 11. Ne4 Nxe4 12. Bxe4 Ra7 13. Be3 c5 14. Bxb7 Rxb7 15. dxc5 {1-0 (34) Inarkiev,E (2693)-Di Nicolantonio,L (2389) Sitges 2018}) 9. b3 {[%emt 0:03:28]} cxb3 {[%emt 0:03:06]} 10. Qxb3 {[%emt 0:00:03]} Bd6 {[%emt 0:02:26]} 11. Nd3 {[%emt 0:04:03]} Nd7 {[%emt 0:01:30]} 12. Nc3 {[%emt 0:01:33]} Ngf6 {[%emt 0:01:48]} 13. e4 {[%emt 0:10:17]} e5 {[%emt 0:02:05]} 14. dxe5 {[%emt 0:03:34]} Nxe5 {[%emt 0:00:28]} 15. Nxe5 {[%emt 0:00:12]} Bxe5 {[%emt 0:00:09]} 16. Ba3 {[%emt 0:00:54]} Bc8 {[%emt 0:11:49] [#]} 17. Rac1 $1 {[%emt 0:09:18]} Be6 {[%emt 0:07:43]} 18. Qb1 {[%emt 0:11:04]} Bc4 $1 {[%emt 0:02:07]} 19. Rfd1 {[%emt 0:00:27]} Qb6 {[%emt 0:02:45]} 20. Nxb5 {[%emt 0:02:48]} axb5 {[%emt 0:11:01] [#]} 21. Rxc4 $1 {[%emt 0:00:30] Pin} Qc7 {[%emt 0:00:06]} 22. Rcc1 {[%emt 0:16:47]} (22. Rc2 $142) 22... Rxa4 {[%emt 0:01:07]} 23. Bb4 {[%emt 0:01:00]} g5 {[%emt 0:08:24]} 24. Bf1 {[%emt 0:04:36]} Qb6 {[%emt 0:04:24]} 25. Rc5 {[%emt 0:02:47]} Nd7 {[%emt 0:01:31] [#]} 26. Rxd7 $1 {[%emt 0:00:22] Remove Defender} Kxd7 {[%emt 0:00:06]} 27. Rxe5 {[%emt 0:00:27]} Qd4 {[%emt 0:00:14]} 28. Rd5+ {[%emt 0:11:54]} cxd5 {[%emt 0:01:40]} 29. Bxb5+ {[%emt 0:00:02] Double Attack} Ke6 {[%emt 0:02:13]} 30. exd5+ {[%emt 0:00:49]} Kf6 {[%emt 0:00:30]} 31. Bxa4 {[%emt 0:02:09]} Ra8 $2 {[%emt 0:02:23]} (31... Rb8) 32. Be7+ {[%emt 0:02:24]} Kg7 {[%emt 0:00:08] [#]} 33. Qf5 $1 {[%emt 0:01:19]} Qd2 {[%emt 0:04:01]} 34. Bf6+ {[%emt 0:02:16]} Kf8 {[%emt 0:02:07]} 35. Bc6 {[%emt 0:00:41]} Rb8 {[%emt 0:01:18]} 36. Qxh7 {[%emt 0:01:59]} Qe1+ {[%emt 0:00:23]} 37. Kg2 {[%emt 0:00:02]} Qe4+ {[%emt 0:02:45]} 38. Qxe4 {[%emt 0:00:13] Ke8} 1-0

[Event "Gibraltar Challengers B 2020"]
[Site "Caleta"]
[Date "2020.01.27"]
[Round "3.21"]
[White "Mao, Yingzhou"]
[Black "Stolniceanu, Victor-Dumitru"]
[Result "0-1"]
[ECO "D02"]
[WhiteElo "1948"]
[BlackElo "2074"]
[Annotator "NA"]
[PlyCount "88"]
[EventDate "2020.01.20"]
[EventType "swiss"]
[EventCountry "GGB"]
[SourceTitle "playchess.com"]
[Source "ChessBase"]
[SourceQuality "1"]
[TimeControl "6600+10"]

1. d4 {[%emt 0:00:00]} d5 {[%emt 0:09:59]} 2. Nf3 {[%emt 0:00:15]} Nf6 {[%emt 0:00:24]} 3. g3 {[%emt 0:00:12]} g6 {[%emt 0:00:09]} 4. Bg2 {[%emt 0:00:02]} Bg7 {[%emt 0:00:11]} 5. O-O {[%emt 0:00:05]} Nc6 {[%emt 0:00:14]} 6. b3 {[%emt 0:02:45]} Ne4 {[%emt 0:00:11]} 7. Bb2 {[%emt 0:00:26]} O-O {[%emt 0:00:45]} 8. Nbd2 {[%emt 0:01:56]} Qd6 {[%emt 0:00:58]} 9. Nxe4 {[%emt 0:20:26]} dxe4 {[%emt 0:01:02]} 10. Ng5 {[%emt 0:02:00]} f5 {[%emt 0:00:33]} 11. e3 {[%emt 0:00:45]} e5 {[%emt 0:02:04]} 12. d5 {[%emt 0:01:47]} Ne7 {[%emt 0:01:25]} 13. c4 {[%emt 0:00:11]} c6 {[%emt 0:00:43]} 14. dxc6 {[%emt 0:00:58]} Qxc6 {[%emt 0:00:23]} 15. Qe2 {[%emt 0:07:01]} h6 {[%emt 0:00:09]} 16. Nh3 {[%emt 0:00:15]} Be6 {[%emt 0:00:08]} 17. Ba3 {[%emt 0:04:28]} Rfe8 {[%emt 0:00:33]} 18. Rad1 {[%emt 0:01:14]} Qa6 {[%emt 0:00:50]} 19. Bd6 {[%emt 0:05:46]} g5 {[%emt 0:00:23]} 20. Nxg5 {[%emt 0:06:52]} hxg5 {[%emt 0:00:18]} 21. Qh5 {[%emt 0:00:09]} g4 {[%emt 0:01:45]} 22. Qg5 {[%emt 0:02:39]} Kf7 {[%emt 0:03:52]} 23. Qh5+ {[%emt 0:02:56]} Ng6 {[%emt 0:00:20]} 24. h3 {[%emt 0:05:09]} Rh8 {[%emt 0:00:41]} 25. hxg4 {[%emt 0:00:24]} Rxh5 {[%emt 0:00:10]} 26. gxh5 {[%emt 0:00:03]} Ne7 {[%emt 0:00:47]} 27. g4 {[%emt 0:03:36]} Rd8 {[%emt 0:00:22]} 28. c5 {[%emt 0:01:08]} Qxa2 {[%emt 0:00:36]} 29. g5 {[%emt 0:02:37]} Nd5 {[%emt 0:00:49]} 30. Ra1 {[%emt 0:01:19]} Qc2 {[%emt 0:00:44]} 31. Rxa7 {[%emt 0:00:10]} Rxd6 {[%emt 0:02:01]} 32. cxd6 {[%emt 0:00:19]} Qc6 {[%emt 0:00:08]} 33. Rfa1 {[%emt 0:01:38]} Bc8 {[%emt 0:00:15]} 34. Bf1 {[%emt 0:01:39]} Nb6 {[%emt 0:00:24]} 35. Rd1 {[%emt 0:08:28]} Bf8 {[%emt 0:01:08]} 36. Raa1 {[%emt 0:00:31]} Bxd6 {[%emt 0:01:31]} 37. Bb5 {[%emt 0:03:19]} Qc7 {[%emt 0:00:37]} 38. Kf1 {[%emt 0:01:29]} f4 {[%emt 0:00:08]} 39. Rac1 {[%emt 0:02:00]} Bh3+ {[%emt 0:00:32]} 40. Kg1 {[%emt 0:00:55]} Qe7 {[%emt 0:00:07]} 41. Kh2 {[%emt 0:01:17]} Bg4 {[%emt 0:00:24]} 42. g6+ {[%emt 0:03:11]} Kg7 {[%emt 0:00:10]} 43. Rd2 {[%emt 0:01:01]} Qh4+ {[%emt 0:00:16]} 44. Kg1 {[%emt 0:00:01]} Bf3 {[%emt 0:00:12]} 0-1

[Event "Gibraltar Challengers B 2020"]
[Site "Caleta"]
[Date "2020.01.27"]
[Round "3.22"]
[White "Hamer, Martyn"]
[Black "Ruiz Buendia, Miguel"]
[Result "1-0"]
[ECO "D00"]
[WhiteElo "2069"]
[BlackElo "1917"]
[Annotator "NA"]
[PlyCount "97"]
[EventDate "2020.01.20"]
[EventType "swiss"]
[EventCountry "GGB"]
[SourceTitle "playchess.com"]
[Source "ChessBase"]
[SourceQuality "1"]
[TimeControl "6600+10"]

1. d4 {[%emt 0:00:10]} Nf6 {[%emt 0:01:27]} 2. Nc3 {[%emt 0:00:08]} d5 {[%emt 0:00:08]} 3. Bf4 {[%emt 0:00:06]} e6 {[%emt 0:00:49]} 4. Nb5 {[%emt 0:00:12]} Bd6 {[%emt 0:01:57]} 5. Nxd6+ {[%emt 0:00:16]} cxd6 {[%emt 0:00:06]} 6. e3 {[%emt 0:00:29]} Nc6 {[%emt 0:00:15]} 7. Nf3 {[%emt 0:00:51]} O-O {[%emt 0:00:18]} 8. Bd3 {[%emt 0:01:33]} Re8 {[%emt 0:02:26]} 9. Bg5 {[%emt 0:02:18]} e5 {[%emt 0:04:40]} 10. Be2 {[%emt 0:01:23]} h6 {[%emt 0:11:52]} 11. Bxf6 {[%emt 0:06:33]} Qxf6 {[%emt 0:11:44]} 12. dxe5 {[%emt 0:04:52]} dxe5 {[%emt 0:01:16]} 13. Qxd5 {[%emt 0:01:57]} Be6 {[%emt 0:06:16]} 14. Qb5 {[%emt 0:02:34]} Qg6 {[%emt 0:07:34]} 15. O-O {[%emt 0:06:34]} e4 {[%emt 0:00:46]} 16. Ne1 {[%emt 0:01:36]} Bf5 {[%emt 0:04:46]} 17. f4 {[%emt 0:05:14]} exf3 {[%emt 0:16:19]} 18. Rxf3 {[%emt 0:02:29]} Bg4 {[%emt 0:03:15]} 19. Rg3 {[%emt 0:01:37]} Bxe2 {[%emt 0:00:44]} 20. Qxe2 {[%emt 0:00:06]} Qe4 {[%emt 0:00:58]} 21. Qd3 {[%emt 0:07:07]} Rad8 {[%emt 0:06:25]} 22. Qxe4 {[%emt 0:03:55]} Rxe4 {[%emt 0:00:06]} 23. Nd3 {[%emt 0:00:14]} Ne5 {[%emt 0:03:22]} (23... Rc4 $5 {[%cal Rc4c2]}) 24. Nxe5 {[%emt 0:10:30]} Rxe5 {[%emt 0:00:02]} 25. Rf3 {[%emt 0:00:19]} Rd2 {[%emt 0:01:35]} 26. Rf2 {[%emt 0:00:30]} Red5 {[%emt 0:01:32]} 27. Re1 {[%emt 0:02:01]} f6 {[%emt 0:02:39]} 28. Kf1 {[%emt 0:00:29]} Kf7 {[%emt 0:02:34]} 29. Rxd2 {[%emt 0:00:28]} Rxd2 {[%emt 0:00:06]} 30. Re2 {[%emt 0:00:06]} Rd1+ {[%emt 0:00:33]} 31. Kf2 {[%emt 0:00:23]} Ke6 {[%emt 0:00:16]} 32. c4 {[%emt 0:01:46]} b6 {[%emt 0:02:11]} 33. Kf3 {[%emt 0:02:38]} Ke5 {[%emt 0:00:41]} 34. b3 {[%emt 0:01:52]} a5 {[%emt 0:02:08]} 35. h3 {[%emt 0:00:42]} Rf1+ {[%emt 0:01:18]} 36. Rf2 {[%emt 0:00:20]} Rd1 {[%emt 0:01:09]} 37. Rc2 {[%emt 0:00:28]} Kd6 {[%emt 0:00:30]} 38. Ke2 {[%emt 0:02:22]} Rg1 {[%emt 0:00:11]} 39. Kd3 {[%emt 0:00:06]} Kc5 {[%emt 0:02:19]} 40. Ke4 {[%emt 0:01:41]} g6 {[%emt 0:00:05]} ({Better is} 40... Rf1 $14) 41. Rf2 {[%emt 0:00:46]} a4 {[%emt 0:00:20]} 42. g4 {[%emt 0:01:07]} (42. bxa4 $16 f5+ 43. Ke5) 42... axb3 $2 {[%emt 0:02:05]} (42... a3 $1 $11 {and Black is okay.}) 43. axb3 {[%emt 0:00:10]} h5 {[%emt 0:01:58]} 44. Rxf6 {[%emt 0:02:06]} hxg4 {[%emt 0:00:25]} 45. Rxg6 {[%emt 0:00:13]} g3 {[%emt 0:00:18]} 46. Kf3 {[%emt 0:00:08]} Rf1+ {[%emt 0:00:17]} 47. Kg2 {[%emt 0:00:27]} Rb1 {[%emt 0:00:10]} 48. Rg5+ {[%emt 0:00:25]} Kd6 $18 {[%emt 0:00:09]} 49. Rb5 {[%emt 0:00:48] Kd5} 1-0

[Event "Gibraltar Challengers B 2020"]
[Site "Caleta"]
[Date "2020.01.27"]
[Round "3.23"]
[White "Garcia Rodriguez, Inaki"]
[Black "Ungureanu, Sandu"]
[Result "1-0"]
[ECO "D00"]
[WhiteElo "1944"]
[BlackElo "2066"]
[Annotator "NA"]
[PlyCount "70"]
[EventDate "2020.01.20"]
[EventType "swiss"]
[EventCountry "GGB"]
[SourceTitle "playchess.com"]
[Source "ChessBase"]
[SourceQuality "1"]
[TimeControl "6600+10"]

{[%evp 8,70,16,32767,32767,2,2,10,30,-35,32767,32767,32767,32767,32767,43,193,189,260,32767,32767,32767,250,32767,32767,32767,256,319,32767,32767,32767,349,32767,32767,32767,32767,431,32767,767,32767,32767,389,744,847,32767,1076,32767,32767,32767,504,851,1379,1761,32767,32767,32767,32767,32767,2046,29987,29992,29993,29998,32767,29999]} 1. d4 {[%emt 0:00:00]} d5 {[%emt 0:00:01]} 2. Bg5 {[%emt 0:00:17]} g6 {[%emt 0:00:39]} 3. e3 {[%emt 0:00:49]} Bg7 {[%emt 0:00:04]} 4. Nf3 {[%emt 0:00:16]} c5 {[%emt 0:00:11]} (4... Nf6 5. c3 O-O 6. Nbd2 Nbd7 7. Be2 c5 8. a4 Re8 9. O-O e5 10. Bb5 cxd4 11. cxd4 exd4 12. Nxd4 a6 13. Bxd7 Qxd7 14. Qb3 h6 15. Bh4 {1-0 (69) Megaranto,S (2548)-Kopylov,A (2420) Moscow 2015}) 5. c4 {[%emt 0:00:31]} cxd4 {[%emt 0:00:24]} 6. exd4 {[%emt 0:00:16] D00: 1 d4 d5: Unusual lines} Bg4 $146 {[%emt 0:01:39]} ({Predecessor:} 6... Nf6 7. Nc3 dxc4 8. Bxc4 O-O 9. Ne5 Qb6 10. O-O Nc6 11. Nxc6 bxc6 12. Bb3 Rd8 13. Qf3 Qxd4 14. Rad1 Qb6 15. Na4 Qa5 16. Qc3 {1-0 (33) Gaerths,R (2219)-Buttkus,A (2071) Berlin 2011}) 7. Nc3 {[%emt 0:00:14]} h6 {[%emt 0:02:20]} 8. Bh4 {[%emt 0:03:20]} ({White should play} 8. Be3 $14) 8... g5 {[%emt 0:04:34]} 9. Bg3 {[%emt 0:00:25]} Nf6 {[%emt 0:00:10]} 10. Qb3 {[%emt 0:09:49]} Bxf3 {[%emt 0:00:37]} 11. gxf3 {[%emt 0:01:32]} b6 {[%emt 0:03:38]} (11... Nc6 $14) 12. cxd5 {[%emt 0:04:47]} O-O {[%emt 0:00:08]} (12... Nh5 $142 13. Bb5+ Kf8) 13. Bg2 {[%emt 0:02:22]} Na6 {[%emt 0:01:13]} 14. f4 {[%emt 0:14:01]} Nh5 {[%emt 0:01:58]} 15. fxg5 {[%emt 0:02:18]} Bxd4 {[%emt 0:01:38]} 16. Qd1 {[%emt 0:09:26]} Bxc3+ {[%emt 0:08:09]} 17. bxc3 {[%emt 0:00:12]} Nxg3 {[%emt 0:00:06]} 18. hxg3 {[%emt 0:00:19]} Qc7 {[%emt 0:01:54]} 19. Qd4 {[%emt 0:09:01]} ({Weaker is} 19. gxh6 Qxc3+ 20. Kf1 Rad8 $18) 19... e5 {[%emt 0:02:37]} 20. Qe3 {[%emt 0:03:03]} Rac8 {[%emt 0:03:11]} 21. Rc1 {[%emt 0:00:17]} Qc5 {[%emt 0:00:18]} 22. Qd2 {[%emt 0:06:18]} h5 $2 {[%emt 0:05:04]} (22... e4 23. gxh6 Qe7) 23. Qe2 {[%emt 0:04:47]} Qa3 {[%emt 0:00:53]} 24. O-O $2 {[%emt 0:00:30]} (24. Rc2 h4 25. Rxh4) 24... Nb8 {[%emt 0:02:52]} (24... Rcd8 $142 25. Qxh5 Qd6) 25. Qxh5 {[%emt 0:00:17]} Qd6 {[%emt 0:10:02]} 26. Be4 {[%emt 0:01:10]} Rfd8 {[%emt 0:01:34]} 27. Kg2 {[%emt 0:05:25]} Rc4 {[%emt 0:05:03]} 28. Qh7+ {[%emt 0:04:57]} (28. Rh1 $142 {[%csl Gh1][%cal Rh5h8]} Kf8 {[#]} 29. Qf3 $1 {[%mdl 512]} Rxe4 30. Rh6) 28... Kf8 {[%emt 0:01:32]} 29. g6 {[%emt 0:00:09]} fxg6 {[%emt 0:03:54]} 30. f4 {[%emt 0:00:31]} exf4 {[%emt 0:01:58]} 31. Rxf4+ {[%emt 0:00:58]} Qxf4 {[%emt 0:00:06]} 32. gxf4 {[%emt 0:00:20]} Rxe4 {[%emt 0:00:08]} 33. Qxg6 {[%emt 0:00:46]} Re7 {[%emt 0:00:27]} 34. Rh1 {[%emt 0:00:24]} Red7 {[%emt 0:09:14]} 35. Qf6+ {[%emt 0:00:55]} Ke8 {[%emt 0:00:28]} 1-0

[Event "Gibraltar Challengers B 2020"]
[Site "Caleta"]
[Date "2020.01.27"]
[Round "3.24"]
[White "Karlsson, Jorgen"]
[Black "Ankitha, Goud Palle"]
[Result "1/2-1/2"]
[ECO "A47"]
[WhiteElo "2054"]
[BlackElo "1761"]
[Annotator "NA RC"]
[PlyCount "162"]
[EventDate "2020.01.20"]
[EventType "swiss"]
[EventCountry "GGB"]
[SourceTitle "playchess.com"]
[Source "ChessBase"]
[SourceQuality "1"]
[TimeControl "6600+10"]

{[%evp 9,158,0,32767,32767,38,32767,40,20,32767,32767,32767,32767,32767,14,32767,5,29,32767,32767,6,32767,32767,32767,32767,32767,32767,32767,65,32767,32767,14,23,116,32767,32767,32767,32767,32767,32767,32767,32767,32767,32767,32767,29,32767,32767,32767,40,32767,32767,36,32767,49,95,110,112,28,22,25,30,25,32767,32767,32767,0,21,16,32767,16,27,31,27,32767,32767,12,13,0,0,0,32767,32767,32767,0,14,15,12,11,8,3,8,32767,32767,20,29,32767,32767,31,41,32767,32767,21,20,7,24,16,18,32767,32767,32767,32767,16,16,11,32767,11,32767,32767,32767,32767,32767,0,0,0,32767,0,32767,0,0,32767,32767,32767,32767,32767,0,32767,32767,0,0,0,0,32767,32767,32767,32767,0,0,0,0,0,0]} 1. d4 {[%emt 0:01:05]} Nf6 {[%emt 0:00:22]} 2. Bf4 {[%emt 0:00:06]} e6 {[%emt 0:00:11]} 3. e3 {[%emt 0:00:25]} b6 {[%emt 0:00:12]} 4. Nd2 {[%emt 0:00:26]} Bb7 {[%emt 0:00:22]} 5. h3 {[%emt 0:00:35]} c5 {[%emt 0:00:17]} 6. Ngf3 {[%emt 0:00:23]} cxd4 {[%emt 0:03:05]} 7. exd4 {[%emt 0:01:07]} Be7 {[%emt 0:00:27]} 8. Bd3 {[%emt 0:01:50]} O-O {[%emt 0:03:22]} 9. c3 {[%emt 0:01:16]} d6 {[%emt 0:00:45]} 10. O-O {[%emt 0:00:53]} Nbd7 {[%emt 0:00:57]} 11. Qe2 {[%emt 0:01:03]} Re8 {[%emt 0:02:38]} 12. Rad1 {[%emt 0:03:18]} Bf8 {[%emt 0:02:52]} 13. Nc4 {[%emt 0:01:07]} Qc7 {[%emt 0:01:14]} 14. Rfe1 {[%emt 0:08:44]} Rac8 {[%emt 0:12:51]} 15. Ne3 {[%emt 0:01:41]} e5 {[%emt 0:11:43]} 16. dxe5 {[%emt 0:00:21]} Nxe5 {[%emt 0:00:30]} 17. Nxe5 {[%emt 0:00:25]} dxe5 {[%emt 0:00:20]} 18. Bh2 {[%emt 0:00:31]} Qc5 {[%emt 0:05:19]} 19. Ng4 {[%emt 0:02:21]} Nxg4 {[%emt 0:02:49]} 20. hxg4 {[%emt 0:02:50]} f6 {[%emt 0:13:26]} (20... e4 $11 21. Bc2 Rcd8) 21. Bf5 {[%emt 0:01:41]} Rcd8 {[%emt 0:03:10]} 22. Be6+ {[%emt 0:01:29]} Kh8 {[%emt 0:01:58]} 23. Bf7 {[%emt 0:00:18]} Rxd1 {[%emt 0:00:22]} 24. Rxd1 {[%emt 0:00:10]} Rc8 {[%emt 0:03:02]} 25. g5 {[%emt 0:03:10]} fxg5 {[%emt 0:06:19]} 26. Qxe5 {[%emt 0:01:13]} Qxe5 {[%emt 0:05:22]} 27. Bxe5 {[%emt 0:00:08]} Bc6 {[%emt 0:00:08]} 28. b4 {[%emt 0:08:28]} Be7 {[%emt 0:02:05]} 29. Re1 {[%emt 0:05:11]} Bf8 {[%emt 0:03:05]} 30. Re3 {[%emt 0:03:25]} Rd8 {[%emt 0:01:19]} 31. Bb3 {[%emt 0:01:26]} b5 {[%emt 0:02:09]} 32. a3 {[%emt 0:11:36]} a6 {[%emt 0:08:02]} 33. c4 {[%emt 0:03:31]} (33. Bd4 $16) 33... bxc4 $1 {[%emt 0:01:35]} 34. Bxc4 {[%emt 0:00:14]} Bb5 {[%emt 0:00:51]} 35. Bb3 {[%emt 0:03:04]} Bc6 {[%emt 0:04:33]} 36. Bc7 {[%emt 0:01:32]} Rc8 {[%emt 0:01:10]} 37. Ba5 {[%emt 0:01:37]} Bd7 {[%emt 0:01:27]} 38. Rd3 {[%emt 0:01:05]} Bb5 {[%emt 0:01:17]} 39. Rd8 {[%emt 0:01:09]} Rxd8 {[%emt 0:00:18]} 40. Bxd8 {[%emt 0:00:06]} h6 {[%emt 0:00:10]} 41. Ba5 {[%emt 0:02:57]} Kh7 {[%emt 0:00:25]} 42. Bc2+ {[%emt 0:01:25]} Kg8 {[%emt 0:00:15]} 43. Bg6 {[%emt 0:00:14]} Bd6 {[%emt 0:00:44]} 44. Bb6 {[%emt 0:00:42]} Be5 {[%emt 0:00:30]} 45. Bc2 {[%emt 0:00:27]} Kf7 {[%emt 0:00:10]} 46. a4 {[%emt 0:00:33]} Bc6 {[%emt 0:00:06]} 47. Bd3 {[%emt 0:00:54]} Bxa4 {[%emt 0:01:08]} 48. Bxa6 {[%emt 0:00:08]} Ke6 {[%emt 0:00:23]} 49. Bc4+ {[%emt 0:00:57]} Kd7 {[%emt 0:00:13]} 50. b5 {[%emt 0:00:16]} Kc8 {[%emt 0:00:16]} 51. Bc5 {[%emt 0:00:37]} Kc7 {[%emt 0:00:50]} 52. Kf1 {[%emt 0:00:35]} Bc2 {[%emt 0:00:13]} 53. Ke2 {[%emt 0:00:52]} Be4 {[%emt 0:00:23]} 54. f3 {[%emt 0:00:19]} Bb7 {[%emt 0:00:05]} 55. g4 {[%emt 0:00:51]} Kd7 {[%emt 0:00:26]} 56. Bf7 {[%emt 0:01:30]} Kc7 {[%emt 0:00:11]} 57. Be6 {[%emt 0:02:12]} Kb8 {[%emt 0:00:45]} 58. Ke3 {[%emt 0:03:08]} Bf4+ {[%emt 0:00:09]} 59. Kf2 {[%emt 0:00:46]} Be5 {[%emt 0:00:01]} 60. Bb6 {[%emt 0:00:42]} Ba8 {[%emt 0:00:03]} 61. Be3 {[%emt 0:00:54]} Bb7 {[%emt 0:00:07]} 62. Bf7 {[%emt 0:02:44]} Kc7 {[%emt 0:00:12]} 63. Bc5 {[%emt 0:00:27]} Kd7 {[%emt 0:00:10]} 64. Ke2 {[%emt 0:00:30]} Kc7 {[%emt 0:00:06]} 65. b6+ {[%emt 0:00:57]} Kb8 {[%emt 0:00:13]} 66. Bc4 {[%emt 0:00:17]} Kc8 {[%emt 0:00:18]} 67. Bd3 {[%emt 0:00:27]} Kb8 {[%emt 0:00:19]} 68. Bf8 {[%emt 0:04:00]} Bc6 {[%emt 0:00:09]} 69. Be4 {[%emt 0:01:15]} Bxe4 {[%emt 0:00:17]} 70. fxe4 {[%emt 0:00:12]} Kb7 {[%emt 0:00:01]} 71. Bc5 {[%emt 0:00:53]} g6 {[%emt 0:00:12]} 72. Be3 {[%emt 0:00:40]} h5 {[%emt 0:00:02]} 73. Kf3 {[%emt 0:02:34]} Kc6 {[%emt 0:00:07]} 74. Bxg5 {[%emt 0:01:00]} Kxb6 {[%emt 0:00:04]} 75. Be3+ {[%emt 0:01:14]} Kc6 {[%emt 0:00:04]} 76. gxh5 {[%emt 0:00:12]} gxh5 {[%emt 0:00:02]} 77. Bg5 {[%emt 0:00:19]} Kd7 {[%emt 0:00:02]} 78. Kg2 {[%emt 0:00:11]} Ke6 {[%emt 0:00:07]} 79. Kh3 $11 {[%emt 0:00:02]} Bd4 {[%emt 0:00:20]} 80. Kh4 {[%emt 0:00:13]} Ke5 {[%emt 0:00:03]} 81. Kxh5 {[%emt 0:00:02]} Kxe4 {[%emt 0:00:02]} 1/2-1/2

[Event "Gibraltar Challengers B 2020"]
[Site "Caleta"]
[Date "2020.01.27"]
[Round "3.25"]
[White "Martinez Lopez, Jaume"]
[Black "Ashwani, Kumar Grover"]
[Result "1-0"]
[ECO "D02"]
[WhiteElo "2042"]
[BlackElo "1731"]
[Annotator "NA"]
[PlyCount "81"]
[EventDate "2020.01.20"]
[EventType "swiss"]
[EventCountry "GGB"]
[SourceTitle "playchess.com"]
[Source "ChessBase"]
[SourceQuality "1"]
[TimeControl "6600+10"]

1. d4 {[%emt 0:00:00]} Nf6 {[%emt 0:12:37]} 2. Nf3 {[%emt 0:00:00]} d5 {[%emt 0:00:26]} 3. Bf4 {[%emt 0:00:08]} e6 {[%emt 0:00:21]} 4. e3 {[%emt 0:00:07]} b6 {[%emt 0:00:49]} 5. Nbd2 {[%emt 0:00:26]} Bb7 {[%emt 0:00:17]} 6. Bd3 {[%emt 0:00:16]} Bd6 {[%emt 0:00:15] D02: 1 d4 d5 2 Nf3 sidelines, including 2...Nf6 3 g3 and 2...Nf6 3 Bf4} 7. Bg3 {[%emt 0:00:09]} Nbd7 {[%emt 0:00:57]} 8. Ne5 {[%emt 0:00:58]} a6 $146 {[%emt 0:00:36]} ({Predecessor:} 8... O-O 9. O-O Ne4 10. Nxe4 dxe4 11. Bb5 Nxe5 12. dxe5 Be7 13. Qg4 Qd5 {½-½ (61) Prohaszka,P (2614)-Sturt,R (2446) Saint Louis 2017}) 9. O-O {[%emt 0:00:21]} Qe7 {[%emt 0:03:47]} 10. c3 {[%emt 0:02:45]} Ne4 {[%emt 0:01:57]} 11. Bxe4 {[%emt 0:09:11]} dxe4 {[%emt 0:00:07]} 12. Qg4 {[%emt 0:00:05]} O-O {[%emt 0:09:55]} (12... h5 $17 13. Qh4 (13. Qxg7 Bxe5 14. Bxe5 O-O-O $17) 13... Qxh4 14. Bxh4 Nxe5 15. dxe5 Bxe5) 13. Bh4 {[%emt 0:01:49]} f6 {[%emt 0:02:00]} 14. Nec4 {[%emt 0:06:17]} g5 {[%emt 0:11:48]} 15. Nxd6 {[%emt 0:02:30]} cxd6 {[%emt 0:00:04]} 16. Bg3 {[%emt 0:00:27]} f5 {[%emt 0:04:14]} 17. Qh5 {[%emt 0:00:06]} f4 {[%emt 0:01:38]} 18. exf4 {[%emt 0:00:07]} gxf4 {[%emt 0:00:03]} 19. Bh4 {[%emt 0:00:12]} Qg7 {[%emt 0:05:18]} 20. Qg5 {[%emt 0:01:05]} d5 {[%emt 0:08:52]} 21. Rfe1 {[%emt 0:07:02]} Rae8 {[%emt 0:06:29]} 22. c4 {[%emt 0:11:10]} Qxg5 {[%emt 0:02:56]} 23. Bxg5 {[%emt 0:01:08]} Rf5 {[%emt 0:00:52]} 24. Bh4 {[%emt 0:00:30]} (24. h4 $15) 24... Rh5 {[%emt 0:01:21]} 25. g3 {[%emt 0:00:07]} Kf7 {[%emt 0:00:29]} 26. cxd5 {[%emt 0:00:21]} exd5 {[%emt 0:12:46]} 27. Rac1 {[%emt 0:00:28]} Ke6 {[%emt 0:04:58]} 28. Rc7 {[%emt 0:06:37]} Rb8 {[%emt 0:01:05]} 29. Rec1 {[%emt 0:03:58]} Kd6 {[%emt 0:01:05]} 30. Kg2 {[%emt 0:04:05]} f3+ {[%emt 0:06:57]} (30... Nc5 $14 31. Rf7 Nd3 32. Rf6+ Kd7) 31. Kf1 {[%emt 0:10:26]} ({White has to play} 31. Kg1 $16) 31... a5 {[%emt 0:00:57]} 32. Kg1 {[%emt 0:00:35]} Nc5 {[%emt 0:03:11]} 33. Rf7 {[%emt 0:01:56]} Nd7 $2 {[%emt 0:02:04]} (33... Nd3 $1 $11 34. Rcc7 Bc8) 34. Nf1 {[%emt 0:06:52]} Rg8 {[%emt 0:01:01]} 35. Kh1 {[%emt 0:00:15]} Rc8 {[%emt 0:02:15]} 36. Rxc8 {[%emt 0:00:29]} Bxc8 {[%emt 0:00:01]} 37. Ne3 {[%emt 0:00:16]} Ke6 $2 {[%emt 0:00:58]} (37... Nc5 {keeps fighting.} 38. dxc5+ bxc5) 38. Rg7 {[%emt 0:01:51]} a4 {[%emt 0:00:01]} 39. a3 {[%emt 0:03:08]} Ba6 {[%emt 0:00:05]} (39... Nf6 {keeps fighting.} 40. Rc7 Rxh4 41. gxh4 Bd7) 40. Ng4 $18 {[%emt 0:00:10]} (40. Re7+ $142 Kd6 41. g4 Rxh4 42. Nf5+ {[%mdl 64] Double Attack} Kc7 43. Nxh4) 40... Bc4 {[%emt 0:00:48]} 41. Re7+ {[%emt 0:00:22]} 1-0